bitfinex-derivatives/quotes_SOLF0:USTF0_20250630
["timestamp","ask_amount","ask_price","bid_price","bid_amount"]
[1751260357606,3.08434263,151.14,151.05,32.8]
[1751260357808,3.08434263,151.14,151.06,35.88434263]
[1751260358002,5.2931,151.11,151.07,5.294]
[1751260359512,3.08434263,151.12,151.06,5.2945]
[1751260359906,3.08434263,151.1,151.06,5.2945]
[1751260360614,5.2938,151.09,151.05,5.2948]
[1751260365209,5.2939,151.08,151.05,5.2948]
[1751260368818,5.2936,151.09,151.05,5.2948]
[1751260373721,3.08498527,151.09,151.04,38.0952]
[1751260374023,3.08498527,151.09,151.02,2.2433]
[1751260374024,3.08498527,151.07,151.01,35.88498527]
[1751260374726,5.2946,151.06,151.03,5.2954]
[1751260387429,211.0,151.09,151.05,3.08498527]
[1751260387631,211.0,151.12,151.05,3.08498527]
[1751260388233,5.2935,151.1,151.06,5.2944]
[1751260389535,5.2936,151.09,151.06,5.2944]
[1751260392736,5.2936,151.09,151.05,8.37978527]
[1751260399944,5.2936,151.09,151.06,5.2946]
[1751260401142,5.2934,151.1,151.06,5.2946]
[1751260401342,3.08498527,151.11,151.06,5.2946]
[1751260402337,5.2937,151.09,151.05,5.2948]
[1751260403745,5.2937,151.09,151.06,1.97371449]
[1751260404143,5.2937,151.09,151.06,7.26821449]
[1751260404847,5.2937,151.09,151.07,1.97371449]
[1751260405145,7.26701449,151.1,151.07,1.97371449]
[1751260409950,5.2936,151.09,151.07,1.97371449]
[1751260412256,5.2936,151.09,151.06,7.26821449]
[1751260422862,5.2936,151.09,151.06,5.2945]
[1751260423164,5.2936,151.09,151.06,7.26821449]
[1751260423366,5.2936,151.09,151.07,1.97371449]
[1751260433669,5.2933,151.1,151.07,1.97371449]
[1751260435571,1.97546622,151.08,151.04,8.24273472]
[1751260435770,2.3467,151.09,151.02,1.97552686]
[1751260435976,1.97552686,151.06,151.02,1.97552686]
[1751260436371,1.97552686,151.07,151.03,1.97552686]
[1751260436568,1.97552686,151.07,151.02,1.97552686]
[1751260436873,5.2943,151.07,151.03,1.97455621]
[1751260437073,1.97455621,151.08,151.03,1.97455621]
[1751260437373,1.97455621,151.08,151.04,1.97455621]
[1751260437675,1.97455621,151.08,151.03,1.97455621]
[1751260437874,5.2946,151.06,151.03,1.97455621]
[1751260438269,5.2946,151.06,151.04,1.97455621]
[1751260440476,5.2946,151.06,151.02,38.0559]
[1751260440677,5.2946,151.06,151.04,1.97455621]
[1751260443578,5.2946,151.06,151.02,38.0559]
[1751260443779,5.2946,151.06,151.04,1.97455621]
[1751260446782,5.2944,151.07,151.04,1.97455621]
[1751260446982,212.97455621,151.1,151.06,1.97455621]
[1751260448084,5.2941,151.08,151.06,1.97455621]
[1751260452086,5.2941,151.08,151.04,38.1352]
[1751260452288,5.2941,151.08,151.06,1.97455621]
[1751260460086,211.0,151.1,151.07,1.97455621]
[1751260460800,216.2934,151.1,151.07,1.97455621]
[1751260461293,37.4202,151.13,151.04,41.08273472]
[1751260461294,1.97455621,151.15,151.09,7.26805621]
[1751260461496,338.44,151.14,151.11,1.97455621]
[1751260461895,5.2924,151.13,151.11,1.97455621]
[1751260462894,5.2924,151.13,151.1,1.97455621]
[1751260463195,218.26645621,151.14,151.1,7.26755621]
[1751260463501,216.2919,151.14,151.1,7.26755621]
[1751260463799,5.2921,151.13,151.1,7.26755621]
[1751260464001,5.2921,151.13,151.1,1.97455621]
[1751260466002,7.26665621,151.13,151.1,1.97455621]
[1751260467205,5.2929,151.11,151.08,32.84]
[1751260467401,7.26745621,151.11,151.08,32.84]
[1751260471805,1.97455621,151.09,151.06,7.26895621]
[1751260472707,7.26805621,151.09,151.05,42.30665621]
[1751260476510,7.26845621,151.08,151.05,35.0373]
[1751260476712,1.97455621,151.09,151.05,34.81455621]
[1751260477510,7.26815621,151.09,151.05,40.10925621]
[1751260478106,5.2936,151.09,151.06,7.26915621]
[1751260479815,5.2936,151.09,151.06,1.97455621]
[1751260484509,7.26815621,151.09,151.06,1.97455621]
[1751260486909,7.26785621,151.1,151.07,1.97455621]
[1751260487418,1.97455621,151.1,151.07,7.26875621]
[1751260487615,7.26755621,151.11,151.07,7.26875621]
[1751260488118,218.26715621,151.12,151.08,7.26835621]
[1751260488911,218.26715621,151.12,151.08,5.2938]
[1751260489115,5.2929,151.11,151.08,5.2938]
[1751260489614,7.26745621,151.11,151.08,5.2938]
[1751260490015,7.26745621,151.11,151.07,7.26865621]
[1751260497429,7.26745621,151.11,151.07,5.2941]
[1751260497725,1.97455621,151.1,151.07,7.26865621]
[1751260498730,7.26745621,151.11,151.07,7.26865621]
[1751260500825,7.26745621,151.11,151.07,5.2941]
[1751260501029,5.2932,151.1,151.06,13.45810648]
[1751260501228,7.26775621,151.1,151.06,13.45810648]
[1751260502934,1.97455621,151.09,151.06,11.48355027]
[1751260503133,1.97455621,151.09,151.06,13.45810648]
[1751260503430,1.97455621,151.09,151.06,11.48355027]
[1751260504829,1.97455621,151.09,151.06,13.45810648]
[1751260505035,7.26775621,151.1,151.06,13.45810648]
[1751260515842,1.97455621,151.1,151.07,7.26875621]
[1751260516044,7.26755621,151.11,151.07,7.26875621]
[1751260516339,5.2932,151.1,151.06,11.48355027]
[1751260516543,5.2932,151.1,151.07,1.97455621]
[1751260518948,211.0,151.12,151.07,1.97455621]
[1751260519149,212.97455621,151.12,151.08,1.97455621]
[1751260519344,211.0,151.12,151.09,1.97455621]
[1751260519749,216.2925,151.12,151.1,1.97455621]
[1751260521850,218.26705621,151.12,151.09,1.97455621]
[1751260527860,216.2925,151.12,151.09,1.97455621]
[1751260528059,218.26705621,151.12,151.09,1.97455621]
[1751260528860,218.26705621,151.12,151.08,13.45740648]
[1751260530556,7.26745621,151.11,151.08,8.16370648]
[1751260530758,1.97455621,151.09,151.08,6.18915027]
[1751260530959,1.97455621,151.09,151.06,6.18915027]
[1751260531660,1.97455621,151.09,151.06,13.45820648]
[1751260532460,134.58785621,151.1,151.06,13.45820648]
[1751260534165,1.97455621,151.09,151.06,13.45820648]
[1751260535866,7.26815621,151.09,151.06,8.16370648]
[1751260536964,7.26815621,151.09,151.06,6.18915027]
[1751260538261,7.26815621,151.09,151.06,8.16370648]
[1751260538765,5.2936,151.09,151.06,8.16370648]
[1751260540367,5.2936,151.09,151.06,6.18915027]
[1751260540569,5.2936,151.09,151.06,8.16370648]
[1751260541169,134.58785621,151.1,151.06,8.16370648]
[1751260541362,1.97455621,151.09,151.06,8.16370648]
[1751260542568,1.97455621,151.09,151.06,13.45830648]
[1751260548771,1.97455621,151.09,151.06,6.18915027]
[1751260554472,1.97455621,151.09,151.06,11.48375027]
[1751260557777,132.6133,151.1,151.06,11.48375027]
[1751260557972,1.97455621,151.09,151.06,11.48375027]
[1751260558174,129.29455621,151.1,151.07,5.2942]
[1751260558780,1.97455621,151.09,151.07,5.2942]
[1751260560483,1.97455621,151.09,151.06,13.45810648]
[1751260561878,1.97455621,151.08,151.06,6.18915027]
[1751260562784,1.97455621,151.09,151.06,6.18915027]
[1751260563180,1.97455621,151.07,151.05,39.02915027]
[1751260564780,1.97455621,151.07,151.05,6.18915027]
[1751260565184,5.294,151.08,151.05,6.18915027]
[1751260565387,1.97455621,151.07,151.05,6.18915027]
[1751260567686,7.26875621,151.07,151.05,6.18915027]
[1751260573995,1.97455621,151.07,151.05,6.18915027]
[1751260574197,4.39247102,151.09,151.05,6.18915027]
[1751260574496,11.66112723,151.08,151.05,6.18915027]
[1751260574698,4.39247102,151.07,151.05,6.18915027]
[1751260574997,7.26865621,151.08,151.05,6.18915027]
[1751260575201,4.39307078,151.07,151.05,6.18915027]
[1751260575497,7.26865621,151.08,151.05,6.18915027]
[1751260575695,4.39382454,151.07,151.05,6.18915027]
[1751260575995,7.26865621,151.08,151.05,6.18915027]
[1751260576196,4.39382454,151.07,151.05,6.18915027]
[1751260576399,7.26865621,151.08,151.05,6.18915027]
[1751260576595,4.39372453,151.07,151.05,6.18915027]
[1751260576795,7.26865621,151.08,151.05,6.18915027]
[1751260576993,4.39372453,151.07,151.05,6.18915027]
[1751260577201,7.26865621,151.08,151.05,6.18915027]
[1751260577395,4.39364056,151.07,151.05,6.18915027]
[1751260577694,7.26865621,151.08,151.05,6.18915027]
[1751260577896,4.39364056,151.07,151.05,6.18915027]
[1751260578097,7.26865621,151.08,151.05,6.18915027]
[1751260578292,4.39361987,151.07,151.05,6.18915027]
[1751260578595,7.26865621,151.08,151.05,6.18915027]
[1751260578795,4.39357099,151.07,151.05,6.18915027]
[1751260578993,7.26865621,151.08,151.05,6.18915027]
[1751260579194,4.39357099,151.07,151.05,6.18915027]
[1751260579398,7.26865621,151.08,151.05,6.18915027]
[1751260579596,4.39351515,151.07,151.05,6.18915027]
[1751260579797,7.26865621,151.08,151.05,6.18915027]
[1751260579998,4.39351515,151.07,151.05,6.18915027]
[1751260580198,7.26865621,151.08,151.05,6.18915027]
[1751260580398,4.39347271,151.07,151.05,6.18915027]
[1751260580600,212.97455621,151.09,151.06,7.26905621]
[1751260580799,4.39391579,151.08,151.06,7.26905621]
[1751260581002,4.39391579,151.07,151.06,7.26905621]
[1751260584704,4.39391579,151.07,151.06,5.2945]
[1751260586506,4.39391579,151.07,151.05,11.48395027]
[1751260586703,212.97455621,151.09,151.05,13.45850648]
[1751260586899,4.44633425,151.08,151.05,13.45850648]
[1751260587097,4.44633425,151.07,151.05,6.18915027]
[1751260587303,1.97455621,151.08,151.05,6.18915027]
[1751260587605,4.44638321,151.07,151.05,6.18915027]
[1751260587804,6.42050292,151.06,151.04,6.18915027]
[1751260588005,4.44594671,151.05,151.04,6.18915027]
[1751260588405,4.44594671,151.05,151.03,6.18915027]
[1751260588609,1.97455621,151.06,151.03,6.18915027]
[1751260588911,6.42012371,151.05,151.03,6.18915027]
[1751260589106,1.97455621,151.05,151.03,6.18915027]
[1751260589506,1.97455621,151.04,151.02,6.18915027]
[1751260590200,127.24,151.06,151.0,15.51389093]
[1751260590201,1.97455621,151.03,151.0,6.18915027]
[1751260590400,1.97455621,151.02,151.0,6.18915027]
[1751260592208,4.44252324,151.04,151.0,5.2965]
[1751260592408,1.97455621,151.02,150.99,6.18915027]
[1751260592907,1.97455621,151.02,150.99,11.48605027]
[1751260593111,1.97455621,151.01,150.99,6.18915027]
[1751260593314,1.97455621,151.0,150.98,6.18915027]
[1751260593620,1.97455621,150.99,150.97,32.68]
[1751260594216,1.97455621,150.99,150.96,6.18915027]
[1751260594217,1.97455621,150.98,150.96,6.18915027]
[1751260594514,1.97455621,150.98,150.94,8.16370648]
[1751260594807,1.97455621,150.98,150.95,5.2984]
[1751260595311,1.97455621,150.99,150.95,7.27295621]
[1751260595612,1.97455621,150.99,150.96,5.2981]
[1751260598315,1.97455621,150.98,150.96,5.2981]
[1751260599216,1.97455621,150.98,150.95,5.2984]
[1751260601311,1.97455621,150.97,150.94,5.2987]
[1751260601519,1.97455621,150.97,150.93,34.65455621]
[1751260602614,1.97455621,150.97,150.93,39.95345621]
[1751260603218,5.2975,150.98,150.94,5.2988]
[1751260603520,1.97455621,150.97,150.94,5.2988]
[1751260605314,211.0,151.01,150.94,5.2988]
[1751260605516,1.97455621,150.99,150.95,1.97455621]
[1751260605716,1.97455621,151.0,150.96,1.97455621]
[1751260606713,1.97455621,151.0,150.97,5.2975]
[1751260612628,1.97455621,151.0,150.96,1.97455621]
[1751260612822,1.97455621,151.0,150.97,1.97455621]
[1751260613017,34.8515,151.04,150.98,5.2973]
[1751260613222,1.97455621,151.02,150.98,7.27185621]
[1751260618329,1.97455621,151.02,150.99,5.297]
[1751260620029,1.97455621,151.02,150.98,7.27185621]
[1751260620230,1.97455621,151.02,150.98,11.89585621]
[1751260621030,7.27065621,151.02,150.98,11.89585621]
[1751260621230,1.97455621,151.02,150.99,5.297]
[1751260621426,1.97455621,151.03,150.99,7.27155621]
[1751260622827,1.97455621,151.02,150.98,11.89575621]
[1751260625028,32.68,151.04,150.97,1.97455621]
[1751260625232,1.97455621,151.02,150.98,1.97455621]
[1751260625434,1.97455621,151.03,150.99,1.97455621]
[1751260626031,1.97455621,151.03,150.99,7.27155621]
[1751260626628,1.97455621,151.03,150.99,1.97455621]
[1751260627733,7.27025621,151.03,150.99,1.97455621]
[1751260630442,7.27025621,151.03,150.98,13.46100648]
[1751260631239,1.97455621,151.02,150.98,13.46100648]
[1751260631734,1.97455621,151.02,150.98,11.48645027]
[1751260631940,5.2957,151.03,150.98,13.46100648]
[1751260632140,1.97455621,151.02,150.98,13.46100648]
[1751260632540,7.27025621,151.03,150.98,13.46100648]
[1751260632742,1.97455621,151.03,150.99,5.297]
[1751260633039,1.97455621,151.03,150.99,11.48615027]
[1751260633743,1.97455621,151.03,150.99,13.46070648]
[1751260637344,7.26995621,151.04,151.0,1.97455621]
[1751260637641,7.26995621,151.04,150.99,13.46070648]
[1751260637846,1.97455621,151.03,150.99,13.46070648]
[1751260638242,1.97455621,151.02,150.99,11.48615027]
[1751260639853,160.2,151.01,150.92,6.18584969]
[1751260640150,1.97656727,150.93,150.87,1.97656727]
[1751260640745,5.2995,150.92,150.87,1.97656727]
[1751260640944,1.97656727,150.91,150.86,1.97656727]
[1751260641838,8.3910445,150.92,150.85,40.73464331]
[1751260642148,37.3712445,150.96,150.85,35.43304331]
[1751260642448,3.0912445,150.91,150.85,34.28]
[1751260643638,3.0912445,150.91,150.86,5.3014]
[1751260644349,8.3911445,150.91,150.86,5.3014]
[1751260644749,3.0912445,150.91,150.86,5.3014]
[1751260645251,3.0912445,150.91,150.86,7.5898]
[1751260647656,8.3911445,150.91,150.86,7.5898]
[1751260648357,5.3002,150.9,150.86,2.2884]
[1751260650860,8.3911445,150.91,150.86,2.2884]
[1751260651059,3.0912445,150.89,150.86,2.2884]
[1751260655566,3.0912445,150.89,150.86,7.59]
[1751260655966,211.0,150.94,150.86,7.59]
[1751260656167,3.0912445,150.91,150.86,7.59]
[1751260657270,3.0912445,150.91,150.87,5.3011]
[1751260659370,5.2996,150.92,150.87,5.3011]
[1751260659567,3.0912445,150.91,150.87,5.3011]
[1751260662272,3.0912445,150.91,150.88,5.3008]
[1751260662479,3.0912445,150.91,150.86,2.2884]
[1751260663574,3.0912445,150.91,150.87,5.3011]
[1751260663775,1.97885985,150.89,150.87,5.3011]
[1751260666876,1.97885985,150.9,150.87,5.3011]
[1751260672280,1.97885985,150.9,150.86,7.5899]
[1751260672475,1.97885985,150.88,150.86,7.5899]
[1751260673278,1.97896116,150.88,150.86,7.5899]
[1751260677787,1.97896116,150.88,150.87,5.3012]
[1751260678082,1.97896116,150.88,150.86,2.2884]
[1751260678485,1.97896116,150.88,150.86,7.5897]
[1751260678786,1.97899342,150.88,150.86,7.5897]
[1751260681578,1.97899342,150.88,150.87,5.3012]
[1751260681983,1.97899342,150.88,150.86,7.5899]
[1751260683486,1.97899342,150.89,150.87,5.3012]
[1751260684289,4.63518192,150.88,150.87,5.3012]
[1751260685691,1.97899342,150.9,150.86,10.47907403]
[1751260686081,1.97851198,150.9,150.88,5.3007]
[1751260688296,1.97851198,150.89,150.88,5.3007]
[1751260690192,1.97871782,150.89,150.88,5.3007]
[1751260696801,211.0,150.93,150.89,5.3004]
[1751260697000,1.97871782,150.9,150.89,5.3004]
[1751260697599,1.97859598,150.9,150.89,5.3004]
[1751260699309,1.97867564,150.9,150.89,5.3004]
[1751260701314,6.55090472,150.9,150.89,5.3004]
[1751260701804,6.55090472,150.9,150.89,11.50572249]
[1751260702506,6.55090472,150.9,150.89,5.3004]
[1751260703307,6.55090472,150.9,150.88,11.50602249]
[1751260703506,1.97867564,150.9,150.88,11.50602249]
[1751260706607,1.97867564,150.9,150.89,5.3005]
[1751260706804,6.54837355,150.9,150.89,5.3005]
[1751260708406,6.54837355,150.9,150.88,11.50612249]
[1751260708609,1.97867564,150.9,150.88,6.20532249]
[1751260708809,1.97867564,150.89,150.88,6.20532249]
[1751260709011,1.97867564,150.89,150.88,11.50612249]
[1751260712406,6.53607215,150.89,150.87,11.50652249]
[1751260712606,1.97884076,150.88,150.87,11.50652249]
[1751260714713,1.97884076,150.89,150.88,5.3008]
[1751260714913,6.53601194,150.89,150.88,5.3008]
[1751260717418,6.53601194,150.89,150.87,11.50642249]
[1751260717610,1.97884076,150.89,150.87,11.50642249]
[1751260725022,1.97884076,150.89,150.88,5.3009]
[1751260725226,6.53930401,150.89,150.88,5.3009]
[1751260726226,6.53930401,150.89,150.88,11.50622249]
[1751260726825,4.56046325,150.89,150.88,11.50622249]
[1751260727120,6.53930401,150.89,150.88,11.50622249]
[1751260727326,6.53929627,150.89,150.88,11.50622249]
[1751260728426,6.53929627,150.89,150.88,6.20532249]
[1751260731228,4.56046325,150.89,150.88,11.50622249]
[1751260732027,4.56046325,150.89,150.88,6.20532249]
[1751260737226,4.56046325,150.89,150.88,11.50622249]
[1751260743438,4.56046325,150.89,150.88,6.20532249]
[1751260749049,0.97166325,150.89,150.88,11.50622249]
[1751260749442,0.97166325,150.89,150.88,6.20532249]
[1751260751644,0.97166325,150.89,150.88,11.50622249]
[1751260753849,2.95049627,150.89,150.88,11.50622249]
[1751260756153,0.97166325,150.89,150.88,11.50622249]
[1751260756450,2.95049627,150.89,150.88,11.50622249]
[1751260757246,2.95049627,150.89,150.88,6.20532249]
[1751260757646,2.95059217,150.89,150.88,6.20532249]
[1751260761054,2.95059217,150.89,150.88,11.50622249]
[1751260761354,2.95059217,150.89,150.88,6.20532249]
[1751260761955,2.95059217,150.89,150.88,11.50622249]
[1751260762155,2.95059217,150.89,150.88,6.20532249]
[1751260766865,0.97166325,150.89,150.88,11.50622249]
[1751260767362,0.97166325,150.89,150.88,6.20532249]
[1751260767565,2.95052562,150.89,150.88,6.20532249]
[1751260768966,2.95052562,150.89,150.88,11.50622249]
[1751260770166,2.95052562,150.89,150.88,6.20532249]
[1751260770670,2.95052562,150.89,150.88,11.50622249]
[1751260770969,0.97166325,150.89,150.88,11.50622249]
[1751260771265,0.97166325,150.89,150.88,5.3009]
[1751260773878,2.95052562,150.89,150.88,5.3009]
[1751260774773,0.97166325,150.89,150.88,5.3009]
[1751260774976,2.95052562,150.89,150.88,5.3009]
[1751260779183,0.97166325,150.89,150.88,5.3009]
[1751260779481,2.95052562,150.89,150.88,5.3009]
[1751260782290,2.95052562,150.89,150.87,11.50642249]
[1751260782585,1.97886237,150.89,150.87,11.50642249]
[1751260784789,1.97886237,150.89,150.88,5.3009]
[1751260784988,6.49056216,150.89,150.88,5.3009]
[1751260786687,6.49056216,150.89,150.88,11.50998338]
[1751260786988,4.51169979,150.89,150.88,11.50998338]
[1751260787188,1.97886237,150.91,150.88,11.50998338]
[1751260787391,4.51194175,150.9,150.88,11.50998338]
[1751260787582,1.97886237,150.91,150.88,11.50998338]
[1751260787783,6.49051745,150.9,150.88,11.50998338]
[1751260788088,1.97886237,150.9,150.88,11.50998338]
[1751260790891,1.97849419,150.9,150.88,11.50998338]
[1751260797003,216.2993,150.93,150.88,11.50998338]
[1751260797301,1.97849419,150.9,150.88,11.50998338]
[1751260798406,216.2993,150.93,150.89,5.3004]
[1751260798601,1.97849419,150.9,150.89,5.3004]
[1751260798903,6.49747579,150.9,150.89,5.3004]
[1751260800802,6.49757761,150.9,150.89,5.3004]
[1751260802299,4.5189816,150.9,150.89,11.50948338]
[1751260802499,212.97859601,150.93,150.89,5.3004]
[1751260802701,4.51736722,150.92,150.9,11.50479605]
[1751260802900,4.51736722,150.91,150.9,11.50479605]
[1751260803907,1.9778916,150.92,150.9,11.50479605]
[1751260804105,1.9778916,150.92,150.9,6.20469605]
[1751260804404,1.9778916,150.91,150.9,6.20469605]
[1751260804600,1.9778916,150.91,150.88,6.20469605]
[1751260804802,1.9778916,150.89,150.88,6.20469605]
[1751260805399,1.9778916,150.89,150.87,6.20469605]
[1751260805706,1.9778916,150.88,150.87,6.20469605]
[1751260806307,5.3002,150.91,150.87,6.20469605]
[1751260806606,1.9778916,150.88,150.87,6.20469605]
[1751260809699,1.9778916,150.88,150.86,6.20469605]
[1751260809901,1.9778916,150.87,150.86,6.20469605]
[1751260810306,4.51639765,150.91,150.86,6.20469605]
[1751260810504,1.9778916,150.87,150.86,6.20469605]
[1751260810704,1.9778916,150.88,150.86,6.20469605]
[1751260811909,1.9778916,150.89,150.86,6.20469605]
[1751260812713,7.2784916,150.89,150.86,6.20469605]
[1751260813312,1.9778916,150.88,150.86,6.20469605]
[1751260815713,6.49286501,150.89,150.86,6.20469605]
[1751260815911,1.9778916,150.89,150.86,6.20469605]
[1751260816418,4.5145774,150.88,150.86,6.20469605]
[1751260816615,1.9778916,150.89,150.86,6.20469605]
[1751260816813,4.51466695,150.88,150.86,6.20469605]
[1751260817015,1.9778916,150.89,150.86,6.20469605]
[1751260817214,4.51466695,150.88,150.86,6.20469605]
[1751260817415,1.9778916,150.89,150.86,11.50619605]
[1751260817715,6.49231162,150.88,150.86,6.20469605]
[1751260817918,1.9778916,150.88,150.86,6.20469605]
[1751260819515,5.3006,150.89,150.86,6.20469605]
[1751260819516,1.9778916,150.87,150.86,6.20469605]
[1751260820614,5.3009,150.88,150.86,6.20469605]
[1751260820814,1.9778916,150.87,150.86,6.20469605]
[1751260822116,1.9778916,150.87,150.85,6.20469605]
[1751260822417,1.9778916,150.87,150.85,11.50659605]
[1751260823113,1.9778916,150.87,150.85,11.50649605]
[1751260827421,1.9778916,150.87,150.85,6.20469605]
[1751260831725,1.9778916,150.87,150.85,11.50659605]
[1751260831926,1.9778916,150.89,150.85,8.18258765]
[1751260832325,6.43611684,150.89,150.85,8.18258765]
[1751260833225,6.43611684,150.89,150.86,5.3014]
[1751260834727,4.45822524,150.89,150.87,5.3012]
[1751260835020,211.0,150.91,150.88,1.97852554]
[1751260835214,211.0,150.91,150.88,6.20469605]
[1751260835420,1.97791582,150.93,150.89,7.27821582]
[1751260835620,4.45896638,150.92,150.89,7.27821582]
[1751260835924,1.97791582,150.93,150.89,7.27821582]
[1751260836126,1.97791582,150.93,150.9,5.3001]
[1751260836329,4.45881889,150.93,150.9,7.27801582]
[1751260837325,6.43673471,150.93,150.9,7.27801582]
[1751260839030,1.97791582,150.93,150.9,7.27801582]
[1751260841238,1.97791582,150.93,150.9,5.3001]
[1751260841738,1.97791582,150.93,150.91,5.2998]
[1751260844644,6.49074568,150.93,150.91,5.2998]
[1751260850950,1.97791582,150.92,150.91,5.2998]
[1751260852750,6.49074568,150.93,150.91,5.2998]
[1751260853254,1.97791582,150.93,150.91,5.2998]
[1751260855151,211.0,150.94,150.91,5.2998]
[1751260855350,1.97791582,150.93,150.91,5.2998]
[1751260855653,6.47575308,150.93,150.91,5.2998]
[1751260856356,1.97791582,150.92,150.88,4.21791582]
[1751260857048,1.97791582,150.92,150.9,5.3]
[1751260862851,1.97791582,150.92,150.89,5.3004]
[1751260863047,1.97791582,150.9,150.87,32.9]
[1751260863251,1.97791582,150.88,150.86,8.43889605]
[1751260864760,1.97791582,150.88,150.87,5.3012]
[1751260864956,1.97791582,150.89,150.87,5.3012]
[1751260866558,1.97791582,150.89,150.86,13.74039605]
[1751260867556,1.97791582,150.89,150.86,7.5357]
[1751260868157,1.97791582,150.89,150.86,13.74039605]
[1751260868657,1.97791582,150.9,150.87,5.3012]
[1751260868862,212.97791582,150.91,150.87,1.97791582]
[1751260869055,212.97791582,150.91,150.87,8.18261187]
[1751260869659,212.97791582,150.91,150.88,5.3007]
[1751260871760,1.97791582,150.9,150.88,5.3007]
[1751260873663,1.97791582,150.9,150.89,5.3005]
[1751260873860,212.97791582,150.91,150.89,5.3005]
[1751260876261,212.97791582,150.91,150.88,11.50549605]
[1751260876764,212.97791582,150.91,150.88,5.3008]
[1751260877161,212.97791582,150.91,150.88,11.50549605]
[1751260879967,211.0,150.91,150.88,13.48341187]
[1751260884969,212.97791582,150.91,150.88,11.50549605]
[1751260886471,1.97791582,150.9,150.88,6.20469605]
[1751260886663,1.97791582,150.89,150.88,6.20469605]
[1751260888067,1.97791582,150.89,150.87,6.20469605]
[1751260890173,1.97791582,150.89,150.86,11.50609605]
[1751260892173,1.97791582,150.88,150.86,11.50609605]
[1751260893280,6.49204677,150.89,150.86,11.50609605]
[1751260893470,1.97791582,150.89,150.86,11.50609605]
[1751260900482,1.97791582,150.88,150.86,6.20469605]
[1751260901380,1.97791582,150.87,150.85,11.50659605]
[1751260902078,1.97791582,150.87,150.86,6.20469605]
[1751260902877,1.97791582,150.87,150.86,11.50629605]
[1751260903279,6.49197513,150.88,150.86,5.3016]
[1751260903580,1.97791582,150.88,150.86,5.3016]
[1751260904081,1.97791582,150.88,150.86,11.50629605]
[1751260904283,1.97791582,150.88,150.86,5.3016]
[1751260905785,1.97791582,150.87,150.85,11.50649605]
[1751260906089,1.97791582,150.87,150.85,6.20469605]
[1751260907474,1.97791582,150.87,150.85,11.50639605]
[1751260907978,1.97791582,150.87,150.85,6.20469605]
[1751260908180,1.97791582,150.87,150.86,5.3016]
[1751260908390,6.45745605,150.88,150.86,5.3016]
[1751260909585,6.45745605,150.88,150.85,11.50649605]
[1751260910881,1.97791582,150.87,150.85,11.50649605]
[1751260917090,1.97791582,150.87,150.86,5.3016]
[1751260922791,6.41969317,150.88,150.86,5.3016]
[1751260923793,6.41969317,150.88,150.85,5.3018]
[1751260924291,1.97791582,150.87,150.85,5.3018]
[1751260924996,1.97791582,150.87,150.84,44.36689605]
[1751260926599,1.97791582,150.87,150.84,11.50689605]
[1751260926998,1.97791582,150.87,150.84,6.20469605]
[1751260927703,1.97791582,150.87,150.85,5.3017]
[1751260931502,6.42383614,150.87,150.85,5.3017]
[1751260931701,1.97791582,150.87,150.85,5.3017]
[1751260931901,6.42383614,150.87,150.85,5.3017]
[1751260932102,1.97791582,150.87,150.85,5.3017]
[1751260940209,1.97791582,150.88,150.86,5.3014]
[1751260940410,4.44655631,150.87,150.86,5.3014]
[1751260940910,4.44655631,150.87,150.85,5.3018]
[1751260941112,1.97791582,150.88,150.85,5.3018]
[1751260941409,4.44680849,150.87,150.85,5.3018]
[1751260941613,1.97791582,150.88,150.85,5.3018]
[1751260941812,4.44674743,150.87,150.85,5.3018]
[1751260942015,1.97791582,150.88,150.85,5.3018]
[1751260942213,4.45804887,150.87,150.85,5.3018]
[1751260942415,1.97791582,150.88,150.85,5.3018]
[1751260942609,4.45829013,150.87,150.85,5.3018]
[1751260942809,1.97791582,150.88,150.85,5.3018]
[1751260943010,4.45829013,150.87,150.85,5.3018]
[1751260943212,1.97791582,150.88,150.85,5.3018]
[1751260943512,4.45858629,150.87,150.85,5.3018]
[1751260943711,1.97791582,150.88,150.85,5.3018]
[1751260943911,4.45893566,150.87,150.85,5.3018]
[1751260944114,1.97791582,150.88,150.85,5.3018]
[1751260944316,4.45933207,150.87,150.85,5.3018]
[1751260944516,1.97791582,150.88,150.85,5.3018]
[1751260944716,4.45929426,150.87,150.85,5.3018]
[1751260944916,1.97791582,150.88,150.85,5.3018]
[1751260945116,4.45929426,150.87,150.85,5.3018]
[1751260945317,1.97791582,150.88,150.85,5.3018]
[1751260945520,4.45972637,150.87,150.85,5.3018]
[1751260945719,1.97791582,150.88,150.85,5.3018]
[1751260945909,4.45972414,150.87,150.85,5.3018]
[1751260946115,1.97791582,150.88,150.85,5.3018]
[1751260946318,4.46003652,150.87,150.85,5.3018]